[Event "Late-Titled-Tuesday-Blitz-March-05-2024"]
[Site "Chess.com"]
[Date "2024.03.05"]
[Round "11"]
[White "Jospem"]
[Black "VladimirKramnik"]
[Result "1-0"]
[WhiteElo "3108"]
[BlackElo "2982"]
[TimeControl "180+1"]
[EndTime "16:02:50 PST"]
[Termination "Jospem won on time"]

1. e4 {[%clk 0:03:00.9]} 1... c5 {[%clk 0:02:59.7]} 2. Nf3 {[%clk 0:03:01.3]}
2... d6 {[%clk 0:02:59.9]} 3. c3 {[%clk 0:03:01.9]} 3... Nf6 {[%clk 0:02:59.5]}
4. h3 {[%clk 0:03:02.6]} 4... Nc6 {[%clk 0:02:58.9]} 5. Bd3 {[%clk 0:03:02.9]}
5... e5 {[%clk 0:02:57.7]} 6. Bc2 {[%clk 0:03:03.1]} 6... d5 {[%clk 0:02:56.1]}
7. exd5 {[%clk 0:03:02]} 7... Qxd5 {[%clk 0:02:56]} 8. Qe2 {[%clk 0:02:56.1]}
8... Be7 {[%clk 0:02:53.3]} 9. d3 {[%clk 0:02:51.4]} 9... O-O {[%clk 0:02:52.3]}
10. Nbd2 {[%clk 0:02:51]} 10... Bf5 {[%clk 0:02:39.6]} 11. Ne4 {[%clk
0:02:40.5]} 11... Rad8 {[%clk 0:02:38.3]} 12. Bg5 {[%clk 0:02:33]} 12... Bg6
{[%clk 0:02:12.1]} 13. Bxf6 {[%clk 0:02:31.1]} 13... Bxf6 {[%clk 0:02:05.5]} 14.
g4 {[%clk 0:02:15.3]} 14... b5 {[%clk 0:01:43.2]} 15. h4 {[%clk 0:02:07.5]}
15... c4 {[%clk 0:01:32.4]} 16. dxc4 {[%clk 0:02:02.6]} 16... Qxc4 {[%clk
0:01:27.4]} 17. Qxc4 {[%clk 0:01:52.4]} 17... bxc4 {[%clk 0:01:28]} 18. h5
{[%clk 0:01:53.3]} 18... Bxe4 {[%clk 0:01:27.7]} 19. Bxe4 {[%clk 0:01:54.2]}
19... Rd6 {[%clk 0:01:23.1]} 20. Rd1 {[%clk 0:01:46.2]} 20... Rfd8 {[%clk
0:01:19.3]} 21. Rxd6 {[%clk 0:01:41.9]} 21... Rxd6 {[%clk 0:01:18.4]} 22. Ke2
{[%clk 0:01:36.9]} 22... Na5 {[%clk 0:01:10.7]} 23. Rd1 {[%clk 0:01:14.2]} 23...
Rxd1 {[%clk 0:01:10]} 24. Kxd1 {[%clk 0:01:15.1]} 24... Kf8 {[%clk 0:01:01.5]}
25. Bxh7 {[%clk 0:01:10.7]} 25... Nb7 {[%clk 0:01:01]} 26. g5 {[%clk 0:01:05.5]}
26... Bd8 {[%clk 0:00:57.9]} 27. Nxe5 {[%clk 0:01:05.7]} 27... Nd6 {[%clk
0:00:51.7]} 28. Nf3 {[%clk 0:01:03.2]} 28... Bb6 {[%clk 0:00:48.3]} 29. Ke2
{[%clk 0:01:02.6]} 29... f6 {[%clk 0:00:39.9]} 30. gxf6 {[%clk 0:00:45.6]} 30...
gxf6 {[%clk 0:00:40.3]} 31. Bg6 {[%clk 0:00:46.5]} 31... Kg7 {[%clk 0:00:39.4]}
32. Nd2 {[%clk 0:00:41.1]} 32... Kh6 {[%clk 0:00:36]} 33. f4 {[%clk 0:00:30.1]}
33... f5 {[%clk 0:00:32.3]} 34. Nf1 {[%clk 0:00:26.1]} 34... Kg7 {[%clk
0:00:29.3]} 35. Ne3 {[%clk 0:00:24.7]} 35... Kf6 {[%clk 0:00:26.4]} 36. Nd5+
{[%clk 0:00:23.8]} 36... Kg7 {[%clk 0:00:26.6]} 37. Nxb6 {[%clk 0:00:21.2]}
37... axb6 {[%clk 0:00:26.4]} 38. Ke3 {[%clk 0:00:22.1]} 38... Kf6 {[%clk
0:00:20.2]} 39. Kd4 {[%clk 0:00:22.3]} 39... b5 {[%clk 0:00:08.3]} 40. Kc5
{[%clk 0:00:20.8]} 1-0

[Event "Late-Titled-Tuesday-Blitz-March-05-2024"]
[Site "Chess.com"]
[Date "2024.03.05"]
[Round "11"]
[White "XDPS"]
[Black "Bykov_Egor"]
[Result "1-0"]
[WhiteElo "2896"]
[BlackElo "2626"]
[TimeControl "180+1"]
[EndTime "16:02:50 PST"]
[Termination "XDPS won on time"]

1. d4 {[%clk 0:03:00.9]} 1... Nf6 {[%clk 0:02:59.7]} 2. Nf3 {[%clk 0:03:01.3]}
2... g6 {[%clk 0:02:59.3]} 3. Bf4 {[%clk 0:03:02]} 3... Bg7 {[%clk 0:02:58.6]}
4. e3 {[%clk 0:03:02.8]} 4... d6 {[%clk 0:02:57.1]} 5. h3 {[%clk 0:03:03.4]}
5... O-O {[%clk 0:02:56.1]} 6. Be2 {[%clk 0:03:04.1]} 6... b6 {[%clk 0:02:46.9]}
7. O-O {[%clk 0:03:03.7]} 7... Bb7 {[%clk 0:02:47.3]} 8. c3 {[%clk 0:03:03.8]}
8... Re8 {[%clk 0:02:45.6]} 9. Bh2 {[%clk 0:03:04]} 9... Nc6 {[%clk 0:02:42.6]}
10. a4 {[%clk 0:03:04.4]} 10... a6 {[%clk 0:02:41.9]} 11. Qc2 {[%clk 0:03:03.7]}
11... e5 {[%clk 0:02:40.8]} 12. Rd1 {[%clk 0:03:02.7]} 12... Qe7 {[%clk
0:02:33.4]} 13. Na3 {[%clk 0:03:02.7]} 13... exd4 {[%clk 0:02:13]} 14. cxd4
{[%clk 0:03:02.8]} 14... Nb4 {[%clk 0:02:12.2]} 15. Qb3 {[%clk 0:03:02.7]} 15...
c5 {[%clk 0:02:06.2]} 16. Nc4 {[%clk 0:02:59.1]} 16... Bd5 {[%clk 0:01:54]} 17.
dxc5 {[%clk 0:02:58.9]} 17... dxc5 {[%clk 0:01:45.3]} 18. Rxd5 {[%clk 0:02:24]}
18... Nfxd5 {[%clk 0:01:40.8]} 19. Rd1 {[%clk 0:02:13.4]} 19... Rad8 {[%clk
0:01:15.1]} 20. Na3 {[%clk 0:02:08.4]} 20... Qe6 {[%clk 0:01:12.3]} 21. Bc4
{[%clk 0:02:06.6]} 21... Qc6 {[%clk 0:00:56.8]} 22. Bg3 {[%clk 0:02:04.8]} 22...
Rd7 {[%clk 0:00:56.1]} 23. Re1 {[%clk 0:02:02.7]} 23... Nc7 {[%clk 0:00:42.1]}
24. Ng5 {[%clk 0:01:52.2]} 24... Qf6 {[%clk 0:00:37.2]} 25. Nxf7 {[%clk
0:01:48]} 25... Rxf7 {[%clk 0:00:36.5]} 26. Bxf7+ {[%clk 0:01:45.9]} 26... Qxf7
{[%clk 0:00:37.4]} 27. Qxf7+ {[%clk 0:01:46.5]} 27... Kxf7 {[%clk 0:00:38.3]}
28. Bxc7 {[%clk 0:01:47.1]} 28... Nd5 {[%clk 0:00:36.9]} 29. Bg3 {[%clk
0:01:44.7]} 29... Bxb2 {[%clk 0:00:36.9]} 30. Nc4 {[%clk 0:01:45.4]} 30... Bc3
{[%clk 0:00:30.4]} 31. Rd1 {[%clk 0:01:46]} 31... Ke6 {[%clk 0:00:26.5]} 32. e4
{[%clk 0:01:44.1]} 32... Ne7 {[%clk 0:00:17.3]} 33. Rd6+ {[%clk 0:01:43.6]}
33... Kf7 {[%clk 0:00:17.6]} 34. Rxb6 {[%clk 0:01:44.5]} 34... Ra8 {[%clk
0:00:16.6]} 35. Rb7 {[%clk 0:01:41.5]} 35... Kf6 {[%clk 0:00:12.1]} 36. Bh4+
{[%clk 0:01:34.4]} 36... g5 {[%clk 0:00:12.6]} 37. Bxg5+ {[%clk 0:01:34.9]}
37... Kxg5 {[%clk 0:00:11.8]} 38. Rxe7 {[%clk 0:01:35.8]} 38... Rb8 {[%clk
0:00:10.3]} 39. g3 {[%clk 0:01:34.6]} 39... Rb4 {[%clk 0:00:09.4]} 40. Nd6
{[%clk 0:01:27]} 40... Rxa4 {[%clk 0:00:09.5]} 41. Rxh7 {[%clk 0:01:23.7]} 41...
Be5 {[%clk 0:00:08.4]} 42. Nf5 {[%clk 0:01:16.6]} 42... Kg6 {[%clk 0:00:07.4]}
43. Rh6+ {[%clk 0:01:15.9]} 43... Kf7 {[%clk 0:00:08]} 44. Rc6 {[%clk
0:01:14.1]} 44... Rxe4 {[%clk 0:00:06.6]} 45. Rxc5 {[%clk 0:01:13.1]} 45... Ke6
{[%clk 0:00:06.6]} 46. g4 {[%clk 0:01:09.6]} 46... Ra4 {[%clk 0:00:04.2]} 47.
Kg2 {[%clk 0:01:08.3]} 47... Ra2 {[%clk 0:00:03.3]} 48. h4 {[%clk 0:01:07.6]}
48... a5 {[%clk 0:00:03.7]} 49. h5 {[%clk 0:01:06.4]} 49... a4 {[%clk
0:00:04.2]} 50. Ra5 {[%clk 0:01:06.3]} 50... a3 {[%clk 0:00:03.7]} 51. h6 {[%clk
0:01:06.7]} 51... Bf6 {[%clk 0:00:01.6]} 52. Ra6+ {[%clk 0:01:06.2]} 52... Kf7
{[%clk 0:00:02.2]} 53. h7 {[%clk 0:01:05.5]} 1-0

[Event "Late-Titled-Tuesday-Blitz-March-05-2024"]
[Site "Chess.com"]
[Date "2024.03.05"]
[Round "11"]
[White "mac0504"]
[Black "the_blue_pill"]
[Result "0-1"]
[WhiteElo "2712"]
[BlackElo "2474"]
[TimeControl "180+1"]
[EndTime "16:02:51 PST"]
[Termination "the_blue_pill won on time"]

1. Nf3 {[%clk 0:03:00.9]} 1... d5 {[%clk 0:02:58.9]} 2. d4 {[%clk 0:03:01.3]}
2... e6 {[%clk 0:02:58.8]} 3. Bf4 {[%clk 0:03:02]} 3... c5 {[%clk 0:02:57.4]} 4.
e3 {[%clk 0:03:02.7]} 4... Nc6 {[%clk 0:02:57.5]} 5. Nbd2 {[%clk 0:03:03.1]}
5... Bd6 {[%clk 0:02:57.7]} 6. Bg3 {[%clk 0:03:02.3]} 6... Nge7 {[%clk
0:02:54.5]} 7. c3 {[%clk 0:03:00.5]} 7... O-O {[%clk 0:02:49.6]} 8. Bd3 {[%clk
0:03:00.2]} 8... cxd4 {[%clk 0:02:49.6]} 9. exd4 {[%clk 0:03:00.3]} 9... f6
{[%clk 0:02:50.2]} 10. O-O {[%clk 0:02:49.3]} 10... Bxg3 {[%clk 0:02:48.5]} 11.
hxg3 {[%clk 0:02:49]} 11... e5 {[%clk 0:02:49.1]} 12. dxe5 {[%clk 0:02:31.7]}
12... fxe5 {[%clk 0:02:49]} 13. Bb5 {[%clk 0:02:10.6]} 13... e4 {[%clk
0:02:40.1]} 14. Nd4 {[%clk 0:02:07.1]} 14... Nxd4 {[%clk 0:02:38.5]} 15. cxd4
{[%clk 0:02:08]} 15... Nf5 {[%clk 0:02:34.9]} 16. Nb3 {[%clk 0:02:04]} 16... a6
{[%clk 0:01:56.3]} 17. Be2 {[%clk 0:02:02.2]} 17... Qf6 {[%clk 0:01:48.5]} 18.
Bg4 {[%clk 0:01:57.2]} 18... Nd6 {[%clk 0:01:39.8]} 19. Rc1 {[%clk 0:01:50.9]}
19... Nc4 {[%clk 0:01:35.2]} 20. Bxc8 {[%clk 0:01:44.4]} 20... Raxc8 {[%clk
0:01:34.7]} 21. Qh5 {[%clk 0:01:44.9]} 21... Rcd8 {[%clk 0:01:07.6]} 22. Qe2
{[%clk 0:00:47.2]} 22... a5 {[%clk 0:00:53.6]} 23. Nc5 {[%clk 0:00:25.4]} 23...
b6 {[%clk 0:00:44.6]} 24. Nxe4 {[%clk 0:00:24.1]} 24... dxe4 {[%clk 0:00:41.2]}
25. Qxc4+ {[%clk 0:00:23.7]} 25... Kh8 {[%clk 0:00:39.7]} 26. d5 {[%clk
0:00:21.7]} 26... Qxb2 {[%clk 0:00:25.7]} 27. Rb1 {[%clk 0:00:17.3]} 27... Qe5
{[%clk 0:00:19.2]} 28. Rbd1 {[%clk 0:00:07.3]} 28... e3 {[%clk 0:00:16.2]} 29.
fxe3 {[%clk 0:00:05]} 29... Qxe3+ {[%clk 0:00:16]} 30. Kh2 {[%clk 0:00:05.3]}
30... Qh6+ {[%clk 0:00:10.9]} 31. Kg1 {[%clk 0:00:05.6]} 31... Qe3+ {[%clk
0:00:10.9]} 32. Kh2 {[%clk 0:00:05]} 32... h6 {[%clk 0:00:09]} 33. Rxf8+ {[%clk
0:00:03.4]} 33... Rxf8 {[%clk 0:00:08.5]} 34. d6 {[%clk 0:00:04.3]} 34... Rd8
{[%clk 0:00:07.9]} 35. Qc7 {[%clk 0:00:03.1]} 35... Qg5 {[%clk 0:00:07.5]} 0-1

[Event "Late-Titled-Tuesday-Blitz-March-05-2024"]
[Site "Chess.com"]
[Date "2024.03.05"]
[Round "11"]
[White "Irishchessman16"]
[Black "Goryachkina"]
[Result "0-1"]
[WhiteElo "2521"]
[BlackElo "2689"]
[TimeControl "180+1"]
[EndTime "16:02:52 PST"]
[Termination "Goryachkina won on time"]

1. d4 {[%clk 0:03:00.9]} 1... Nf6 {[%clk 0:02:59.5]} 2. c4 {[%clk 0:03:00.9]}
2... e6 {[%clk 0:02:59.8]} 3. Nc3 {[%clk 0:03:01.2]} 3... Bb4 {[%clk 0:02:58.6]}
4. Qc2 {[%clk 0:03:01.9]} 4... d5 {[%clk 0:02:54.4]} 5. cxd5 {[%clk 0:03:01]}
5... exd5 {[%clk 0:02:52.5]} 6. Bg5 {[%clk 0:03:01.1]} 6... O-O {[%clk
0:02:51.5]} 7. e3 {[%clk 0:02:53.5]} 7... h6 {[%clk 0:02:48.9]} 8. Bh4 {[%clk
0:02:47.8]} 8... Re8 {[%clk 0:02:46]} 9. Nf3 {[%clk 0:02:37.6]} 9... c5 {[%clk
0:02:30.9]} 10. dxc5 {[%clk 0:02:30.3]} 10... Be6 {[%clk 0:02:23.3]} 11. Bb5
{[%clk 0:02:24.1]} 11... Nc6 {[%clk 0:02:16.6]} 12. O-O {[%clk 0:02:19.1]} 12...
Bxc5 {[%clk 0:02:07.7]} 13. Rfd1 {[%clk 0:02:12.6]} 13... Rc8 {[%clk 0:02:02.7]}
14. Nd4 {[%clk 0:01:31.7]} 14... Bd6 {[%clk 0:01:39.8]} 15. Bg3 {[%clk
0:01:05.5]} 15... Bxg3 {[%clk 0:01:27.1]} 16. hxg3 {[%clk 0:01:05.1]} 16... Ng4
{[%clk 0:01:26.2]} 17. Nde2 {[%clk 0:00:38.1]} 17... a6 {[%clk 0:01:21.2]} 18.
Ba4 {[%clk 0:00:33.9]} 18... Qg5 {[%clk 0:01:16.8]} 19. Nf4 {[%clk 0:00:31.5]}
19... Red8 {[%clk 0:01:07.1]} 20. Qe2 {[%clk 0:00:26.9]} 20... Nf6 {[%clk
0:00:51.1]} 21. Rd2 {[%clk 0:00:14.7]} 21... Bg4 {[%clk 0:00:44]} 22. Qe1 {[%clk
0:00:13.4]} 22... b5 {[%clk 0:00:31.5]} 23. Bb3 {[%clk 0:00:12.2]} 23... d4
{[%clk 0:00:31.4]} 24. Ncd5 {[%clk 0:00:10.2]} 24... Nxd5 {[%clk 0:00:29.2]} 25.
Nxd5 {[%clk 0:00:10]} 25... Rxd5 {[%clk 0:00:28.8]} 26. Bxd5 {[%clk 0:00:10]}
26... Qxd5 {[%clk 0:00:29.5]} 27. Rc1 {[%clk 0:00:10.1]} 27... Re8 {[%clk
0:00:29.1]} 28. Rdc2 {[%clk 0:00:06.7]} 28... Ne5 {[%clk 0:00:21.5]} 29. Rc5
{[%clk 0:00:06.3]} 29... Qd6 {[%clk 0:00:18.8]} 30. Qd2 {[%clk 0:00:03.2]} 30...
d3 {[%clk 0:00:09.9]} 31. R5c3 {[%clk 0:00:03]} 31... Be2 {[%clk 0:00:09.6]} 32.
Re1 {[%clk 0:00:02.1]} 32... Nc4 {[%clk 0:00:09.7]} 33. Qc1 {[%clk 0:00:01]}
33... d2 {[%clk 0:00:09.4]} 0-1

[Event "Late-Titled-Tuesday-Blitz-March-05-2024"]
[Site "Chess.com"]
[Date "2024.03.05"]
[Round "11"]
[White "Zq1"]
[Black "venturov"]
[Result "0-1"]
[WhiteElo "2568"]
[BlackElo "2487"]
[TimeControl "180+1"]
[EndTime "16:02:52 PST"]
[Termination "venturov won by resignation"]

1. d4 {[%clk 0:01:57.6]} 1... Nf6 {[%clk 0:02:59.4]} 2. c4 {[%clk 0:01:54.3]}
2... d6 {[%clk 0:02:59.5]} 3. Nc3 {[%clk 0:01:53.5]} 3... Nbd7 {[%clk
0:02:59.8]} 4. e4 {[%clk 0:01:53.4]} 4... e5 {[%clk 0:03:00.3]} 5. Nf3 {[%clk
0:01:53.5]} 5... g6 {[%clk 0:02:59.9]} 6. Be2 {[%clk 0:01:53.2]} 6... Bg7 {[%clk
0:03:00.2]} 7. O-O {[%clk 0:01:53.3]} 7... O-O {[%clk 0:03:00.9]} 8. Be3 {[%clk
0:01:53.5]} 8... Re8 {[%clk 0:03:00.5]} 9. d5 {[%clk 0:01:51.9]} 9... Nh5 {[%clk
0:03:01]} 10. g3 {[%clk 0:01:49.5]} 10... Bf8 {[%clk 0:03:01.2]} 11. Nd2 {[%clk
0:01:47.9]} 11... Ng7 {[%clk 0:03:01.1]} 12. f3 {[%clk 0:01:48]} 12... Be7
{[%clk 0:03:01.1]} 13. Bd3 {[%clk 0:01:45.2]} 13... f5 {[%clk 0:03:00.6]} 14. b4
{[%clk 0:01:42.1]} 14... Bg5 {[%clk 0:02:49.7]} 15. Bf2 {[%clk 0:01:41.9]} 15...
Bxd2 {[%clk 0:02:50.1]} 16. Qxd2 {[%clk 0:01:41.1]} 16... Nf6 {[%clk 0:02:49.3]}
17. c5 {[%clk 0:01:37.1]} 17... fxe4 {[%clk 0:02:39.3]} 18. Nxe4 {[%clk
0:01:26.2]} 18... Bh3 {[%clk 0:02:31.2]} 19. Rfe1 {[%clk 0:01:21.7]} 19... Rf8
{[%clk 0:02:17]} 20. Ng5 {[%clk 0:01:17.3]} 20... Nd7 {[%clk 0:01:55.8]} 21.
Nxh3 {[%clk 0:01:16.4]} 21... Rxf3 {[%clk 0:01:54.4]} 22. Ng5 {[%clk 0:01:10.2]}
22... Rxd3 {[%clk 0:01:53]} 23. Qxd3 {[%clk 0:01:09.1]} 23... Qxg5 {[%clk
0:01:53.4]} 24. Be3 {[%clk 0:01:06.7]} 24... Qg4 {[%clk 0:01:50.9]} 25. cxd6
{[%clk 0:01:02.9]} 25... cxd6 {[%clk 0:01:51.8]} 26. Rac1 {[%clk 0:00:59]} 26...
Nf5 {[%clk 0:01:26.2]} 27. Rc4 {[%clk 0:00:45.7]} 27... Qh3 {[%clk 0:01:20.6]}
28. Bf2 {[%clk 0:00:40.3]} 28... Nf6 {[%clk 0:01:18.3]} 29. Qf1 {[%clk
0:00:36.5]} 29... Qh5 {[%clk 0:01:06.4]} 30. Qg2 {[%clk 0:00:28.6]} 30... Ng4
{[%clk 0:01:03.6]} 31. h3 {[%clk 0:00:25.5]} 31... Nxf2 {[%clk 0:01:03.5]} 32.
Kxf2 {[%clk 0:00:25.5]} 32... Rf8 {[%clk 0:01:00.7]} 33. Kg1 {[%clk 0:00:25.4]}
33... Nd4 {[%clk 0:01:00.6]} 34. Rxd4 {[%clk 0:00:25.4]} 34... exd4 {[%clk
0:01:01.2]} 35. g4 {[%clk 0:00:23.4]} 35... Qg5 {[%clk 0:00:56.8]} 36. Qe4
{[%clk 0:00:22.2]} 36... Qd2 {[%clk 0:00:50]} 37. Qe6+ {[%clk 0:00:18.1]} 37...
Kg7 {[%clk 0:00:41.4]} 38. Re2 {[%clk 0:00:16.9]} 38... Qd1+ {[%clk 0:00:35.4]}
39. Re1 {[%clk 0:00:17]} 39... Qf3 {[%clk 0:00:34.2]} 40. Qe7+ {[%clk
0:00:13.8]} 40... Rf7 {[%clk 0:00:34.2]} 41. Qh4 {[%clk 0:00:07.9]} 41... d3
{[%clk 0:00:31.2]} 42. Re7 {[%clk 0:00:03.5]} 42... d2 {[%clk 0:00:19.4]} 0-1

[Event "Late-Titled-Tuesday-Blitz-March-05-2024"]
[Site "Chess.com"]
[Date "2024.03.05"]
[Round "11"]
[White "Vse_po_kaify"]
[Black "GoValya"]
[Result "1-0"]
[WhiteElo "2414"]
[BlackElo "2251"]
[TimeControl "180+1"]
[EndTime "16:02:52 PST"]
[Termination "Vse_po_kaify won by checkmate"]

1. e4 {[%clk 0:02:01.1]} 1... e6 {[%clk 0:02:59.8]} 2. d3 {[%clk 0:02:00.8]}
2... d5 {[%clk 0:02:59.6]} 3. Nd2 {[%clk 0:02:01.4]} 3... b6 {[%clk 0:02:59.6]}
4. Ngf3 {[%clk 0:02:00.7]} 4... Bb7 {[%clk 0:02:59.8]} 5. g3 {[%clk 0:01:58.4]}
5... Nf6 {[%clk 0:02:59.5]} 6. e5 {[%clk 0:01:57.4]} 6... Nfd7 {[%clk
0:02:59.7]} 7. Bg2 {[%clk 0:01:57]} 7... c5 {[%clk 0:02:59.8]} 8. O-O {[%clk
0:01:56.9]} 8... Be7 {[%clk 0:03:00.1]} 9. Re1 {[%clk 0:01:56.6]} 9... O-O
{[%clk 0:02:59.1]} 10. h4 {[%clk 0:01:54.2]} 10... Nc6 {[%clk 0:02:55]} 11. Nf1
{[%clk 0:01:53.6]} 11... Qc7 {[%clk 0:02:48]} 12. Bf4 {[%clk 0:01:52.3]} 12...
d4 {[%clk 0:02:42.7]} 13. h5 {[%clk 0:01:51.2]} 13... Nb4 {[%clk 0:02:31.1]} 14.
h6 {[%clk 0:01:47.5]} 14... g6 {[%clk 0:02:31.2]} 15. Qd2 {[%clk 0:01:42.1]}
15... Nd5 {[%clk 0:02:29.3]} 16. Bg5 {[%clk 0:01:42]} 16... Rae8 {[%clk
0:02:15.1]} 17. N1h2 {[%clk 0:01:41]} 17... f6 {[%clk 0:02:00.3]} 18. exf6
{[%clk 0:01:39.8]} 18... Bxf6 {[%clk 0:02:00.3]} 19. Bxf6 {[%clk 0:01:37.9]}
19... N7xf6 {[%clk 0:01:57.4]} 20. Ne5 {[%clk 0:01:35.7]} 20... Ne7 {[%clk
0:01:35.9]} 21. Nhf3 {[%clk 0:01:30.3]} 21... Nf5 {[%clk 0:01:32]} 22. Qg5
{[%clk 0:01:22.4]} 22... Qe7 {[%clk 0:01:06]} 23. Re2 {[%clk 0:01:18.4]} 23...
Nd5 {[%clk 0:01:03.4]} 24. Rae1 {[%clk 0:01:15.6]} 24... Qxg5 {[%clk 0:01:02.3]}
25. Nxg5 {[%clk 0:01:16.5]} 25... Nxh6 {[%clk 0:00:41.1]} 26. Nd7 {[%clk
0:01:09.9]} 26... Rf5 {[%clk 0:00:26.4]} 27. Nxe6 {[%clk 0:01:09.6]} 27... Re7
{[%clk 0:00:19.8]} 28. Nexc5 {[%clk 0:01:06.7]} 28... Rxe2 {[%clk 0:00:13.8]}
29. Rxe2 {[%clk 0:01:07.6]} 29... bxc5 {[%clk 0:00:13.7]} 30. Nxc5 {[%clk
0:01:08.1]} 30... Bc6 {[%clk 0:00:13.6]} 31. Re6 {[%clk 0:01:08.3]} 31... Rf6
{[%clk 0:00:11.2]} 32. Rxc6 {[%clk 0:01:06.2]} 32... Rxc6 {[%clk 0:00:10.2]} 33.
Bxd5+ {[%clk 0:01:06.8]} 33... Kg7 {[%clk 0:00:10.7]} 34. Bxc6 {[%clk
0:01:07.7]} 34... Nf7 {[%clk 0:00:10.4]} 35. Ne6+ {[%clk 0:01:06.4]} 35... Kf6
{[%clk 0:00:10.2]} 36. Nxd4 {[%clk 0:01:07.3]} 36... Ne5 {[%clk 0:00:10.6]} 37.
c3 {[%clk 0:01:05.8]} 37... g5 {[%clk 0:00:10]} 38. Be4 {[%clk 0:01:05.3]} 38...
h5 {[%clk 0:00:09.6]} 39. b4 {[%clk 0:01:05.4]} 39... g4 {[%clk 0:00:09.6]} 40.
a4 {[%clk 0:01:05.1]} 40... Ke7 {[%clk 0:00:08.9]} 41. b5 {[%clk 0:01:03.5]}
41... Kd6 {[%clk 0:00:08.8]} 42. a5 {[%clk 0:01:02.9]} 42... Kc5 {[%clk
0:00:08.3]} 43. b6 {[%clk 0:01:03.3]} 43... axb6 {[%clk 0:00:07.6]} 44. a6
{[%clk 0:01:03.8]} 44... b5 {[%clk 0:00:05.4]} 45. a7 {[%clk 0:01:03.9]} 45...
b4 {[%clk 0:00:05.9]} 46. a8=Q {[%clk 0:01:01.7]} 46... bxc3 {[%clk 0:00:06.2]}
47. Qd5+ {[%clk 0:00:54.7]} 47... Kb4 {[%clk 0:00:06.4]} 48. Qxe5 {[%clk
0:00:54.7]} 48... c2 {[%clk 0:00:06.7]} 49. Nxc2+ {[%clk 0:00:54.9]} 49... Kb3
{[%clk 0:00:07]} 50. Nd4+ {[%clk 0:00:51.6]} 50... Kc3 {[%clk 0:00:06.3]} 51.
Nc6+ {[%clk 0:00:51.4]} 51... Kd2 {[%clk 0:00:06.3]} 52. Qb2+ {[%clk 0:00:50.3]}
52... Kd1 {[%clk 0:00:06.1]} 53. Nd4 {[%clk 0:00:49.4]} 53... h4 {[%clk
0:00:04.8]} 54. Qc2+ {[%clk 0:00:49.8]} 54... Ke1 {[%clk 0:00:04.8]} 55. Qe2#
{[%clk 0:00:50.7]} 1-0

[Event "Late-Titled-Tuesday-Blitz-March-05-2024"]
[Site "Chess.com"]
[Date "2024.03.05"]
[Round "11"]
[White "ContrVersia"]
[Black "jk13"]
[Result "1-0"]
[WhiteElo "2867"]
[BlackElo "2660"]
[TimeControl "180+1"]
[EndTime "16:03:04 PST"]
[Termination "ContrVersia won by resignation"]

1. d4 {[%clk 0:03:00.9]} 1... Nf6 {[%clk 0:02:59.5]} 2. c4 {[%clk 0:03:00.8]}
2... e6 {[%clk 0:02:58.2]} 3. Nf3 {[%clk 0:03:00.1]} 3... Bb4+ {[%clk
0:02:58.7]} 4. Bd2 {[%clk 0:03:00]} 4... Bxd2+ {[%clk 0:02:58.9]} 5. Qxd2 {[%clk
0:03:00]} 5... O-O {[%clk 0:02:59.8]} 6. g3 {[%clk 0:03:00.2]} 6... d5 {[%clk
0:03:00.7]} 7. Bg2 {[%clk 0:03:00.3]} 7... c6 {[%clk 0:03:00.7]} 8. O-O {[%clk
0:02:58.3]} 8... Nbd7 {[%clk 0:03:01.3]} 9. Rc1 {[%clk 0:02:58.2]} 9... b6
{[%clk 0:03:01.9]} 10. Qf4 {[%clk 0:02:45.8]} 10... Ba6 {[%clk 0:02:53.4]} 11.
Nbd2 {[%clk 0:02:44.4]} 11... c5 {[%clk 0:02:52.9]} 12. Ne5 {[%clk 0:02:26]}
12... cxd4 {[%clk 0:02:44.9]} 13. Nc6 {[%clk 0:02:24.7]} 13... Qe8 {[%clk
0:02:42.4]} 14. cxd5 {[%clk 0:02:24.6]} 14... Nxd5 {[%clk 0:02:33.7]} 15. Bxd5
{[%clk 0:02:18.3]} 15... exd5 {[%clk 0:02:33.4]} 16. Nxd4 {[%clk 0:02:18.3]}
16... Nc5 {[%clk 0:02:25.7]} 17. Re1 {[%clk 0:01:50.7]} 17... g6 {[%clk
0:01:34.4]} 18. Rad1 {[%clk 0:01:48.3]} 18... Qe7 {[%clk 0:01:26.8]} 19. Nb1
{[%clk 0:01:47.9]} 19... Rad8 {[%clk 0:01:26]} 20. Nc3 {[%clk 0:01:47.6]} 20...
Qd7 {[%clk 0:01:16.8]} 21. h4 {[%clk 0:01:43.2]} 21... h5 {[%clk 0:01:16.3]} 22.
Nf3 {[%clk 0:01:35.4]} 22... Ne6 {[%clk 0:01:00.4]} 23. Qh6 {[%clk 0:01:34.7]}
23... Bb7 {[%clk 0:00:55.4]} 24. Ne4 {[%clk 0:01:32.9]} 24... dxe4 {[%clk
0:00:54.1]} 25. Rxd7 {[%clk 0:01:32.1]} 25... Rxd7 {[%clk 0:00:54.8]} 26. Ng5
{[%clk 0:01:08.2]} 26... Nxg5 {[%clk 0:00:51.2]} 27. Qxg5 {[%clk 0:01:09.1]}
27... Rfd8 {[%clk 0:00:48.3]} 28. Qe3 {[%clk 0:01:00.2]} 28... Rd2 {[%clk
0:00:45.7]} 29. Qc3 {[%clk 0:00:55.9]} 29... Ba6 {[%clk 0:00:43.2]} 30. Kf1
{[%clk 0:00:51.1]} 30... Rxe2 {[%clk 0:00:35.2]} 31. Rxe2 {[%clk 0:00:47]} 31...
Rd1+ {[%clk 0:00:35.3]} 32. Kg2 {[%clk 0:00:46.9]} 32... Bxe2 {[%clk 0:00:35.9]}
33. g4 {[%clk 0:00:47.4]} 33... Bxg4 {[%clk 0:00:20.4]} 34. Qc7 {[%clk
0:00:43.1]} 34... Rd3 {[%clk 0:00:12.9]} 35. Qxa7 {[%clk 0:00:39.7]} 35... Bf3+
{[%clk 0:00:13.3]} 36. Kh2 {[%clk 0:00:39.5]} 36... b5 {[%clk 0:00:11.6]} 37.
Qb8+ {[%clk 0:00:38.8]} 37... Kh7 {[%clk 0:00:11.3]} 38. Qxb5 {[%clk 0:00:37.9]}
38... Rd2 {[%clk 0:00:11.4]} 39. Qb6 {[%clk 0:00:33.2]} 39... Re2 {[%clk
0:00:09.2]} 40. Kg3 {[%clk 0:00:32.2]} 40... Re1 {[%clk 0:00:08.6]} 41. a4
{[%clk 0:00:28.2]} 41... Kg7 {[%clk 0:00:06.1]} 42. Qd4+ {[%clk 0:00:27.1]}
42... f6 {[%clk 0:00:06.2]} 43. a5 {[%clk 0:00:22.7]} 43... Ra1 {[%clk
0:00:02.6]} 44. b4 {[%clk 0:00:22]} 44... Rb1 {[%clk 0:00:01.2]} 45. a6 {[%clk
0:00:21.7]} 45... Rd1 {[%clk 0:00:01.6]} 46. Qxd1 {[%clk 0:00:19.8]} 46... Bxd1
{[%clk 0:00:01.9]} 47. a7 {[%clk 0:00:19.6]} 1-0